[Event "*** Titled Tuesday Blitz"]
[Site "Chess.com"]
[Date "2019.11.05"]
[Round "6"]
[White "DrVitman"]
[Black "esskeettit"]
[Result "1-0"]
[WhiteElo "2716"]
[BlackElo "2439"]
[TimeControl "180+2"]
[EndTime "14:26:29 PST"]
[Termination "DrVitman won on time"]

1. e4 {[%clk 0:03:01.9]} 1... e5 {[%clk 0:02:56.4]} 2. Nf3 {[%clk 0:03:01.3]}
2... Nc6 {[%clk 0:02:50.4]} 3. Bb5 {[%clk 0:03:01.7]} 3... Nf6 {[%clk
0:02:48.5]} 4. Bxc6 {[%clk 0:03:02.2]} 4... dxc6 {[%clk 0:02:46.5]} 5. d3 {[%clk
0:03:03.6]} 5... Bg4 {[%clk 0:02:44.4]} 6. Nbd2 {[%clk 0:03:02]} 6... Bd6 {[%clk
0:02:42]} 7. h3 {[%clk 0:03:02.1]} 7... Bxf3 {[%clk 0:02:39.4]} 8. Qxf3 {[%clk
0:03:04]} 8... Qe7 {[%clk 0:02:38.9]} 9. Nc4 {[%clk 0:03:04.7]} 9... h6 {[%clk
0:02:37]} 10. Ne3 {[%clk 0:03:03.4]} 10... g6 {[%clk 0:02:34.4]} 11. Ng4 {[%clk
0:03:01.1]} 11... Ng8 {[%clk 0:02:13.4]} 12. Bd2 {[%clk 0:02:59.8]} 12... O-O-O
{[%clk 0:02:11.7]} 13. O-O-O {[%clk 0:02:37.5]} 13... Rf8 {[%clk 0:02:09.3]} 14.
Ne3 {[%clk 0:02:35.6]} 14... Qe6 {[%clk 0:02:08.4]} 15. Kb1 {[%clk 0:02:35.5]}
15... f5 {[%clk 0:02:07.4]} 16. exf5 {[%clk 0:02:32.3]} 16... gxf5 {[%clk
0:02:09.3]} 17. Rhe1 {[%clk 0:02:33.3]} 17... Ne7 {[%clk 0:02:05.1]} 18. Bc3
{[%clk 0:02:31.9]} 18... Rhg8 {[%clk 0:01:50.5]} 19. g3 {[%clk 0:02:26.6]} 19...
f4 {[%clk 0:01:44.1]} 20. gxf4 {[%clk 0:02:03.7]} 20... Rxf4 {[%clk 0:01:41.7]}
21. Qh5 {[%clk 0:01:57.4]} 21... Rxf2 {[%clk 0:01:13.7]} 22. Ng4 {[%clk
0:01:49.8]} 22... Rf5 {[%clk 0:01:12.7]} 23. Qxh6 {[%clk 0:01:50.9]} 23... Rg6
{[%clk 0:01:12.4]} 24. Qh4 {[%clk 0:01:37.7]} 24... Nd5 {[%clk 0:00:43.1]} 25.
Bd2 {[%clk 0:01:37.6]} 25... b6 {[%clk 0:00:33.8]} 26. Ne3 {[%clk 0:01:02.5]}
26... Rf4 {[%clk 0:00:25.9]} 27. Qh8+ {[%clk 0:01:02.1]} 27... Rg8 {[%clk
0:00:26.9]} 28. Qh5 {[%clk 0:00:53.3]} 28... Nxe3 {[%clk 0:00:22.5]} 29. Bxe3
{[%clk 0:00:50.1]} 29... Rf5 {[%clk 0:00:23.2]} 30. Qe2 {[%clk 0:00:40.2]} 30...
Rh8 {[%clk 0:00:17.6]} 31. Qg4 {[%clk 0:00:26.7]} 31... Rg8 {[%clk 0:00:17.8]}
32. Qe4 {[%clk 0:00:26.2]} 32... Kb7 {[%clk 0:00:11.9]} 33. d4 {[%clk
0:00:21.8]} 33... Rh5 {[%clk 0:00:07.3]} 34. d5 {[%clk 0:00:21.6]} 34... cxd5
{[%clk 0:00:06.8]} 35. Rxd5 {[%clk 0:00:22.3]} 35... Kb8 {[%clk 0:00:07.8]} 36.
Rd3 {[%clk 0:00:16.1]} 36... Rxh3 {[%clk 0:00:07.4]} 37. a4 {[%clk 0:00:16.6]}
37... Rhg3 {[%clk 0:00:06.8]} 38. a5 {[%clk 0:00:15.6]} 38... R3g4 {[%clk
0:00:07.3]} 39. Qh1 {[%clk 0:00:13.3]} 39... Bb4 {[%clk 0:00:07.8]} 40. a6
{[%clk 0:00:08.6]} 40... e4 {[%clk 0:00:05.5]} 41. Red1 {[%clk 0:00:06.8]} 41...
Bd6 {[%clk 0:00:04.8]} 42. Rd4 {[%clk 0:00:06.5]} 42... Qc8 {[%clk 0:00:04.5]}
43. Rxe4 {[%clk 0:00:07.1]} 43... Rxe4 {[%clk 0:00:06.4]} 44. Qxe4 {[%clk
0:00:08.5]} 44... Qxa6 {[%clk 0:00:08.1]} 45. Bd4 {[%clk 0:00:09.5]} 45... Qc8
{[%clk 0:00:09.2]} 46. Bc3 {[%clk 0:00:10.3]} 46... Re8 {[%clk 0:00:10.6]} 47.
Qc6 {[%clk 0:00:11]} 47... Re6 {[%clk 0:00:08.3]} 48. Qd5 {[%clk 0:00:09.2]}
48... Re8 {[%clk 0:00:06.7]} 49. Rg1 {[%clk 0:00:06.7]} 49... Rd8 {[%clk
0:00:05.6]} 50. Qc4 {[%clk 0:00:06.1]} 50... Qb7 {[%clk 0:00:05.1]} 51. Rd1
{[%clk 0:00:05]} 51... Qc8 {[%clk 0:00:04.7]} 52. Qe2 {[%clk 0:00:03.9]} 52...
Re8 {[%clk 0:00:05.8]} 53. Qd3 {[%clk 0:00:04.7]} 53... Qb7 {[%clk 0:00:06.6]}
54. Bd4 {[%clk 0:00:05]} 54... Qc6 {[%clk 0:00:07.6]} 55. Bc3 {[%clk 0:00:05.1]}
55... Kb7 {[%clk 0:00:08.5]} 56. b3 {[%clk 0:00:05.7]} 56... a5 {[%clk
0:00:09.9]} 57. Bb2 {[%clk 0:00:06.7]} 57... a4 {[%clk 0:00:09.7]} 58. Qh3
{[%clk 0:00:05.3]} 58... axb3 {[%clk 0:00:08.5]} 59. Qxb3 {[%clk 0:00:05]} 59...
Re2 {[%clk 0:00:08.7]} 60. Qd3 {[%clk 0:00:05.9]} 60... Rg2 {[%clk 0:00:08.1]}
61. Qb3 {[%clk 0:00:03.6]} 61... Bf4 {[%clk 0:00:03.7]} 62. Qd3 {[%clk
0:00:04.5]} 62... Bd6 {[%clk 0:00:05]} 63. Qb3 {[%clk 0:00:04.7]} 63... Bf4
{[%clk 0:00:06.6]} 64. Bc3 {[%clk 0:00:03.5]} 64... Qe4 {[%clk 0:00:07]} 65. Bb2
{[%clk 0:00:03.6]} 65... Bd6 {[%clk 0:00:07.7]} 66. Qd3 {[%clk 0:00:04.6]} 66...
Qxd3 {[%clk 0:00:06.5]} 67. Rxd3 {[%clk 0:00:06.5]} 67... Kc6 {[%clk 0:00:07.1]}
68. Rc3+ {[%clk 0:00:07.1]} 68... Kd7 {[%clk 0:00:07.7]} 69. Rd3 {[%clk
0:00:08.1]} 69... Kc6 {[%clk 0:00:09.1]} 70. Rc3+ {[%clk 0:00:07.8]} 70... Kd5
{[%clk 0:00:10.3]} 71. Rd3+ {[%clk 0:00:08.7]} 71... Ke4 {[%clk 0:00:11.3]} 72.
Rd4+ {[%clk 0:00:09.7]} 72... Ke3 {[%clk 0:00:12]} 73. Rd3+ {[%clk 0:00:11.2]}
73... Ke2 {[%clk 0:00:12.5]} 74. Bd4 {[%clk 0:00:12.7]} 74... Rg6 {[%clk
0:00:10.9]} 75. Re3+ {[%clk 0:00:09.6]} 75... Kf1 {[%clk 0:00:08.7]} 76. Rf3+
{[%clk 0:00:10.6]} 76... Kg2 {[%clk 0:00:09.2]} 77. Rf2+ {[%clk 0:00:10.9]}
77... Kg3 {[%clk 0:00:09.7]} 78. Rf7 {[%clk 0:00:11.6]} 78... Re6 {[%clk
0:00:09.8]} 79. Kb2 {[%clk 0:00:07.7]} 79... Re4 {[%clk 0:00:06.5]} 80. Kc3
{[%clk 0:00:04.7]} 80... c5 {[%clk 0:00:04.6]} 81. Bf6 {[%clk 0:00:04.3]} 81...
Re6 {[%clk 0:00:03.7]} 82. Kc4 {[%clk 0:00:03.6]} 82... b5+ {[%clk 0:00:03.3]}
83. Kxb5 {[%clk 0:00:04.1]} 83... Kg4 {[%clk 0:00:04.6]} 84. Bd8 {[%clk
0:00:04.8]} 84... Be5 {[%clk 0:00:04.4]} 85. Bb6 {[%clk 0:00:05]} 85... Re8
{[%clk 0:00:04.8]} 86. Bxc5 {[%clk 0:00:04.3]} 86... Rc8 {[%clk 0:00:05.8]} 87.
c4 {[%clk 0:00:04]} 87... Rb8+ {[%clk 0:00:07]} 88. Bb6 {[%clk 0:00:05.3]} 88...
Bd4 {[%clk 0:00:06.9]} 89. c5 {[%clk 0:00:05.4]} 89... Be5 {[%clk 0:00:04.3]}
90. Rd7 {[%clk 0:00:05.8]} 90... Rc8 {[%clk 0:00:04.1]} 91. Rf7 {[%clk
0:00:06.2]} 91... Bf4 {[%clk 0:00:03.8]} 92. c6 {[%clk 0:00:06.7]} 92... Be5
{[%clk 0:00:05.1]} 93. Kc5 {[%clk 0:00:07.3]} 93... Bf4 {[%clk 0:00:05.7]} 94.
Kd5 {[%clk 0:00:07.4]} 94... Bb8 {[%clk 0:00:05.6]} 95. Rd7 {[%clk 0:00:08]}
95... Bf4 {[%clk 0:00:06.4]} 96. Rd8 {[%clk 0:00:07.7]} 96... Rxd8+ {[%clk
0:00:06.4]} 97. Bxd8 {[%clk 0:00:09.6]} 97... Kf5 {[%clk 0:00:07.3]} 98. Bh4
{[%clk 0:00:10]} 98... Bc7 {[%clk 0:00:06.8]} 99. Be7 {[%clk 0:00:10.9]} 99...
Ba5 {[%clk 0:00:05.1]} 100. Kd6 {[%clk 0:00:10.8]} 100... Bb6 {[%clk 0:00:03.9]}
101. Kd7 {[%clk 0:00:11.1]} 101... Ke5 {[%clk 0:00:04.5]} 102. Bd8 {[%clk
0:00:12.2]} 1-0

[Event "*** Titled Tuesday Blitz"]
[Site "Chess.com"]
[Date "2019.11.05"]
[Round "7"]
[White "BIG_Pirate"]
[Black "Barcelona_Guy"]
[Result "1-0"]
[WhiteElo "2447"]
[BlackElo "2711"]
[TimeControl "180+2"]
[EndTime "14:32:16 PST"]
[Termination "BIG_Pirate won by resignation"]

1. Nf3 {[%clk 0:03:01.9]} 1... Nf6 {[%clk 0:03:00.8]} 2. c4 {[%clk 0:03:02.5]}
2... c5 {[%clk 0:03:01.9]} 3. Nc3 {[%clk 0:03:02.9]} 3... Nc6 {[%clk 0:03:03.4]}
4. g3 {[%clk 0:03:04]} 4... d6 {[%clk 0:03:04.1]} 5. Bg2 {[%clk 0:03:04.4]} 5...
g6 {[%clk 0:03:05.6]} 6. O-O {[%clk 0:03:05.1]} 6... Bg7 {[%clk 0:03:07.1]} 7.
a3 {[%clk 0:03:06.6]} 7... h5 {[%clk 0:03:01.5]} 8. d3 {[%clk 0:02:55.8]} 8...
Bd7 {[%clk 0:02:52.5]} 9. Bg5 {[%clk 0:02:53.4]} 9... Rb8 {[%clk 0:02:45.7]} 10.
Rb1 {[%clk 0:02:53.7]} 10... a6 {[%clk 0:02:46.8]} 11. b4 {[%clk 0:02:54.2]}
11... cxb4 {[%clk 0:02:48]} 12. axb4 {[%clk 0:02:56.1]} 12... b5 {[%clk
0:02:47.1]} 13. cxb5 {[%clk 0:02:55.9]} 13... axb5 {[%clk 0:02:49]} 14. Nd2
{[%clk 0:02:48.6]} 14... Nh7 {[%clk 0:02:44.5]} 15. Nce4 {[%clk 0:02:40.7]}
15... d5 {[%clk 0:02:26.4]} 16. Nd6+ {[%clk 0:02:37.6]} 16... Kf8 {[%clk
0:02:27.1]} 17. Nxf7 {[%clk 0:02:26.5]} 17... Kxf7 {[%clk 0:02:26.5]} 18. Bxd5+
{[%clk 0:02:27.8]} 18... e6 {[%clk 0:02:26.1]} 19. Bxd8 {[%clk 0:02:28.1]} 19...
Rhxd8 {[%clk 0:02:14.1]} 20. Bg2 {[%clk 0:02:24.1]} 20... Rbc8 {[%clk
0:02:10.6]} 21. Ne4 {[%clk 0:02:24.9]} 21... Nd4 {[%clk 0:02:11.2]} 22. Nd6+
{[%clk 0:02:25]} 1-0

[Event "*** Titled Tuesday Blitz"]
[Site "Chess.com"]
[Date "2019.11.05"]
[Round "7"]
[White "RiskyDecision"]
[Black "el-reptiliano"]
[Result "0-1"]
[WhiteElo "2501"]
[BlackElo "2326"]
[TimeControl "180+2"]
[EndTime "14:32:21 PST"]
[Termination "el-reptiliano won by resignation"]

1. d4 {[%clk 0:03:01.9]} 1... d5 {[%clk 0:03:01]} 2. c4 {[%clk 0:03:03]} 2...
dxc4 {[%clk 0:03:02.9]} 3. e4 {[%clk 0:03:03.5]} 3... e5 {[%clk 0:03:03.1]} 4.
Nf3 {[%clk 0:03:03.8]} 4... exd4 {[%clk 0:03:04.1]} 5. Bxc4 {[%clk 0:03:05.3]}
5... Nc6 {[%clk 0:03:03.5]} 6. O-O {[%clk 0:03:04.6]} 6... Be6 {[%clk
0:03:04.6]} 7. Bxe6 {[%clk 0:03:05.4]} 7... fxe6 {[%clk 0:03:06.5]} 8. Qb3
{[%clk 0:03:06.4]} 8... Qd7 {[%clk 0:03:02.2]} 9. Qxb7 {[%clk 0:03:06.2]} 9...
Rb8 {[%clk 0:03:03.2]} 10. Qa6 {[%clk 0:03:06.6]} 10... Bd6 {[%clk 0:03:04.6]}
11. a3 {[%clk 0:03:04.4]} 11... Nge7 {[%clk 0:03:02]} 12. Nbd2 {[%clk
0:02:59.3]} 12... O-O {[%clk 0:03:02.3]} 13. b4 {[%clk 0:03:00.7]} 13... e5
{[%clk 0:02:59]} 14. Qc4+ {[%clk 0:02:52.8]} 14... Kh8 {[%clk 0:02:59.4]} 15.
Nb3 {[%clk 0:02:45.3]} 15... Ng6 {[%clk 0:02:58.1]} 16. Bd2 {[%clk 0:02:43.3]}
16... Rxf3 {[%clk 0:02:40.9]} 17. gxf3 {[%clk 0:02:36.5]} 17... Nh4 {[%clk
0:02:27.2]} 0-1

[Event "*** Titled Tuesday Blitz"]
[Site "Chess.com"]
[Date "2019.11.05"]
[Round "7"]
[White "gemarin"]
[Black "raswi"]
[Result "0-1"]
[WhiteElo "2124"]
[BlackElo "2219"]
[TimeControl "180+2"]
[EndTime "14:33:52 PST"]
[Termination "raswi won by resignation"]

1. d4 {[%clk 0:02:53.2]} 1... Nf6 {[%clk 0:02:50.3]} 2. c3 {[%clk 0:02:54.1]}
2... g6 {[%clk 0:02:51.9]} 3. Nd2 {[%clk 0:02:53.3]} 3... Bg7 {[%clk 0:02:48.7]}
4. e4 {[%clk 0:02:53.3]} 4... O-O {[%clk 0:02:49.9]} 5. e5 {[%clk 0:02:53.5]}
5... Nd5 {[%clk 0:02:51]} 6. Bc4 {[%clk 0:02:54]} 6... Nb6 {[%clk 0:02:51.2]} 7.
Bb3 {[%clk 0:02:54.8]} 7... d6 {[%clk 0:02:49.5]} 8. exd6 {[%clk 0:02:55]} 8...
exd6 {[%clk 0:02:50.4]} 9. Ne2 {[%clk 0:02:56.4]} 9... Re8 {[%clk 0:02:32.5]}
10. O-O {[%clk 0:02:57.1]} 10... Bg4 {[%clk 0:02:33.8]} 11. f3 {[%clk
0:02:57.9]} 11... Bd7 {[%clk 0:02:26.8]} 12. Ng3 {[%clk 0:02:56.5]} 12... Nc6
{[%clk 0:02:27.7]} 13. Nde4 {[%clk 0:02:56.8]} 13... Na5 {[%clk 0:02:06.8]} 14.
Bg5 {[%clk 0:02:46.7]} 14... Qc8 {[%clk 0:02:06]} 15. Bc2 {[%clk 0:02:33.8]}
15... Nd5 {[%clk 0:01:58.1]} 16. Re1 {[%clk 0:02:23.3]} 16... h6 {[%clk
0:01:54.9]} 17. Bc1 {[%clk 0:02:21.3]} 17... Qd8 {[%clk 0:01:43.7]} 18. Qd3
{[%clk 0:02:16.4]} 18... Nf6 {[%clk 0:01:39.8]} 19. Nf2 {[%clk 0:02:13.1]} 19...
Rxe1+ {[%clk 0:01:39.1]} 20. Nf1 {[%clk 0:02:03]} 20... Qe7 {[%clk 0:01:22.8]}
21. d5 {[%clk 0:01:58.5]} 21... Bf5 {[%clk 0:01:21.9]} 22. Qd2 {[%clk
0:01:57.4]} 22... Bxc2 {[%clk 0:01:20.8]} 23. Qxc2 {[%clk 0:01:58.7]} 23... Qe2
{[%clk 0:01:16.9]} 24. Qxe2 {[%clk 0:01:56.8]} 24... Rxe2 {[%clk 0:01:18.4]} 0-1

[Event "*** Titled Tuesday Blitz"]
[Site "Chess.com"]
[Date "2019.11.05"]
[Round "7"]
[White "snowlord"]
[Black "Knight8700"]
[Result "1-0"]
[WhiteElo "2718"]
[BlackElo "2422"]
[TimeControl "180+2"]
[EndTime "14:34:07 PST"]
[Termination "snowlord won by resignation"]

1. e4 {[%clk 0:03:01.9]} 1... e5 {[%clk 0:03:00.6]} 2. Nf3 {[%clk 0:03:02.5]}
2... Nc6 {[%clk 0:02:59.4]} 3. Bb5 {[%clk 0:03:03.4]} 3... Nf6 {[%clk
0:03:00.3]} 4. O-O {[%clk 0:03:03.9]} 4... Be7 {[%clk 0:03:01.3]} 5. Re1 {[%clk
0:03:04.8]} 5... d6 {[%clk 0:03:01.3]} 6. d4 {[%clk 0:03:05.5]} 6... exd4 {[%clk
0:03:01.9]} 7. Nxd4 {[%clk 0:03:06.2]} 7... Bd7 {[%clk 0:03:03]} 8. Nc3 {[%clk
0:03:06.5]} 8... O-O {[%clk 0:03:03.1]} 9. Bxc6 {[%clk 0:03:07.3]} 9... bxc6
{[%clk 0:03:03.3]} 10. Qf3 {[%clk 0:03:08.4]} 10... Re8 {[%clk 0:02:57.6]} 11.
b3 {[%clk 0:03:08.1]} 11... Bf8 {[%clk 0:02:57.6]} 12. Bb2 {[%clk 0:03:08.6]}
12... g6 {[%clk 0:02:57.9]} 13. e5 {[%clk 0:03:07]} 13... dxe5 {[%clk
0:02:51.5]} 14. Nxc6 {[%clk 0:03:07.7]} 14... Bxc6 {[%clk 0:02:49.7]} 15. Qxc6
{[%clk 0:03:08]} 15... Bg7 {[%clk 0:02:50.8]} 16. Rad1 {[%clk 0:03:06.6]} 16...
Qe7 {[%clk 0:02:52]} 17. Nb5 {[%clk 0:03:03.5]} 17... Ng4 {[%clk 0:02:42.8]} 18.
h3 {[%clk 0:02:57.4]} 18... Nh6 {[%clk 0:02:11.9]} 19. Qxc7 {[%clk 0:02:52.3]}
19... Qg5 {[%clk 0:02:08.9]} 20. Nd6 {[%clk 0:02:24.1]} 20... Re7 {[%clk
0:02:02.8]} 21. Qc6 {[%clk 0:02:25]} 21... Rf8 {[%clk 0:02:02.8]} 22. Ne4 {[%clk
0:02:24.5]} 22... Qf5 {[%clk 0:01:56.1]} 23. Ba3 {[%clk 0:02:03.8]} 23... Re6
{[%clk 0:01:54.1]} 24. Qc7 {[%clk 0:01:51]} 24... Ra8 {[%clk 0:01:43.4]} 25.
Rd8+ {[%clk 0:01:47.5]} 25... Re8 {[%clk 0:01:31.1]} 26. Rxe8+ {[%clk
0:01:48.6]} 26... Rxe8 {[%clk 0:01:32.1]} 27. Nd6 {[%clk 0:01:50.3]} 1-0

[Event "*** Titled Tuesday Blitz"]
[Site "Chess.com"]
[Date "2019.11.05"]
[Round "7"]
[White "Vamostodorecto"]
[Black "StephenDedalus83"]
[Result "0-1"]
[WhiteElo "2438"]
[BlackElo "2799"]
[TimeControl "180+2"]
[EndTime "14:34:13 PST"]
[Termination "StephenDedalus83 won by resignation"]

1. d4 {[%clk 0:03:01.9]} 1... Nf6 {[%clk 0:03:00.1]} 2. c4 {[%clk 0:03:02.1]}
2... g6 {[%clk 0:02:58.8]} 3. Nc3 {[%clk 0:03:02.5]} 3... Bg7 {[%clk 0:02:59.1]}
4. e4 {[%clk 0:03:02.6]} 4... d6 {[%clk 0:03:00.3]} 5. Be2 {[%clk 0:03:04.2]}
5... O-O {[%clk 0:03:01.3]} 6. Nf3 {[%clk 0:03:05.8]} 6... e5 {[%clk 0:03:01.5]}
7. O-O {[%clk 0:03:07.4]} 7... Nc6 {[%clk 0:03:02.4]} 8. d5 {[%clk 0:03:08.9]}
8... Ne7 {[%clk 0:03:03.3]} 9. Ne1 {[%clk 0:03:10.6]} 9... Nd7 {[%clk
0:03:01.1]} 10. Be3 {[%clk 0:03:12.2]} 10... f5 {[%clk 0:03:01.8]} 11. f3 {[%clk
0:03:13.7]} 11... f4 {[%clk 0:03:02.9]} 12. Bf2 {[%clk 0:03:15.3]} 12... g5
{[%clk 0:03:03.9]} 13. Rc1 {[%clk 0:03:16.9]} 13... a6 {[%clk 0:03:02.6]} 14. b4
{[%clk 0:03:08.1]} 14... Rf6 {[%clk 0:03:03.2]} 15. c5 {[%clk 0:03:08.2]} 15...
Rh6 {[%clk 0:03:03.8]} 16. cxd6 {[%clk 0:03:05.6]} 16... cxd6 {[%clk 0:03:04.2]}
17. a4 {[%clk 0:02:45.2]} 17... Qe8 {[%clk 0:03:04.9]} 18. Kh1 {[%clk
0:02:40.4]} 18... Qh5 {[%clk 0:03:00.8]} 19. Bg1 {[%clk 0:02:40.8]} 19... Nf6
{[%clk 0:03:01.3]} 20. Nd3 {[%clk 0:02:29.4]} 20... Qh4 {[%clk 0:02:49.2]} 21.
a5 {[%clk 0:02:28.4]} 21... Nh5 {[%clk 0:02:47.4]} 22. g4 {[%clk 0:01:10.7]}
22... fxg3 {[%clk 0:02:25.3]} 23. Na4 {[%clk 0:00:53.4]} 23... Bh3 {[%clk
0:02:22.3]} 24. Ne1 {[%clk 0:00:48.5]} 24... Nf4 {[%clk 0:02:15.6]} 0-1

[Event "*** Titled Tuesday Blitz"]
[Site "Chess.com"]
[Date "2019.11.05"]
[Round "7"]
[White "Tsschessulover"]
[Black "Iyael"]
[Result "1-0"]
[WhiteElo "2416"]
[BlackElo "2099"]
[TimeControl "180+2"]
[EndTime "14:34:19 PST"]
[Termination "Tsschessulover won by resignation"]

1. d4 {[%clk 0:03:01.9]} 1... Nf6 {[%clk 0:02:59.9]} 2. c4 {[%clk 0:03:03.3]}
2... g6 {[%clk 0:03:00.7]} 3. Nc3 {[%clk 0:03:04.5]} 3... Bg7 {[%clk 0:03:01.3]}
4. Nf3 {[%clk 0:03:00.9]} 4... d6 {[%clk 0:03:01.2]} 5. g3 {[%clk 0:03:00.5]}
5... O-O {[%clk 0:03:01.9]} 6. Bg2 {[%clk 0:03:01.9]} 6... Nbd7 {[%clk
0:03:02.9]} 7. O-O {[%clk 0:03:02.1]} 7... e5 {[%clk 0:03:03.6]} 8. dxe5 {[%clk
0:02:59.3]} 8... dxe5 {[%clk 0:03:04]} 9. Bg5 {[%clk 0:02:54.5]} 9... c6 {[%clk
0:03:04]} 10. Qd2 {[%clk 0:02:51]} 10... Qc7 {[%clk 0:03:01.1]} 11. Rfd1 {[%clk
0:02:50.3]} 11... Re8 {[%clk 0:03:00.9]} 12. Ne1 {[%clk 0:02:47.6]} 12... Nf8
{[%clk 0:02:58.9]} 13. Nc2 {[%clk 0:02:46.3]} 13... Ne6 {[%clk 0:02:59.2]} 14.
Bh6 {[%clk 0:02:47.8]} 14... Bh8 {[%clk 0:02:59.1]} 15. Rac1 {[%clk 0:02:47.9]}
15... Bd7 {[%clk 0:02:57.7]} 16. Ne4 {[%clk 0:02:41.1]} 16... Nxe4 {[%clk
0:02:48.6]} 17. Qxd7 {[%clk 0:02:40.7]} 17... N4c5 {[%clk 0:02:41.2]} 18. Qxc7
{[%clk 0:02:37.4]} 18... Nxc7 {[%clk 0:02:42.1]} 19. b4 {[%clk 0:02:36.9]} 19...
N5e6 {[%clk 0:02:42.7]} 20. b5 {[%clk 0:02:33]} 20... cxb5 {[%clk 0:02:39.9]}
21. Bxb7 {[%clk 0:02:34.9]} 21... Rab8 {[%clk 0:02:34]} 22. Bc6 {[%clk
0:02:35.2]} 22... Red8 {[%clk 0:02:35]} 23. cxb5 {[%clk 0:02:34.1]} 23... Nxb5
{[%clk 0:02:29.6]} 24. Rxd8+ {[%clk 0:02:11.6]} 24... Nxd8 {[%clk 0:02:29.2]}
25. Bxb5 {[%clk 0:02:06.2]} 25... Rxb5 {[%clk 0:02:30]} 26. Ne3 {[%clk
0:02:07.7]} 26... Bf6 {[%clk 0:02:27.5]} 27. Rc8 {[%clk 0:02:01.9]} 27... Be7
{[%clk 0:02:18.1]} 28. Nc4 {[%clk 0:01:55.5]} 28... f6 {[%clk 0:02:17.4]} 29.
Rc7 {[%clk 0:01:47.1]} 29... Rb7 {[%clk 0:02:17.1]} 30. Rc8 {[%clk 0:01:38.9]}
30... Kf7 {[%clk 0:02:10.7]} 31. Kg2 {[%clk 0:01:37.9]} 31... g5 {[%clk
0:02:10.9]} 32. Rxd8 {[%clk 0:01:36.1]} 32... Bxd8 {[%clk 0:02:10.6]} 33. Nd6+
{[%clk 0:01:37.4]} 33... Kg6 {[%clk 0:02:11.7]} 34. Nxb7 {[%clk 0:01:38.3]}
34... Kxh6 {[%clk 0:02:12.5]} 35. Nxd8 {[%clk 0:01:38.7]} 1-0

[Event "*** Titled Tuesday Blitz"]
[Site "Chess.com"]
[Date "2019.11.05"]
[Round "7"]
[White "Joel1285"]
[Black "PawnEatingZombie"]
[Result "0-1"]
[WhiteElo "1890"]
[BlackElo "2177"]
[TimeControl "180+2"]
[EndTime "14:34:30 PST"]
[Termination "PawnEatingZombie won by resignation"]

1. d4 {[%clk 0:03:01.9]} 1... d5 {[%clk 0:03:00.6]} 2. c4 {[%clk 0:03:01.3]}
2... e6 {[%clk 0:03:01.6]} 3. Nc3 {[%clk 0:03:02.3]} 3... Bb4 {[%clk 0:03:03.1]}
4. Nf3 {[%clk 0:03:03.5]} 4... dxc4 {[%clk 0:03:03.8]} 5. Qa4+ {[%clk
0:02:56.8]} 5... Nc6 {[%clk 0:03:03.8]} 6. e3 {[%clk 0:02:57.7]} 6... Bd7 {[%clk
0:03:03.5]} 7. Bxc4 {[%clk 0:02:37.5]} 7... Nxd4 {[%clk 0:03:02.5]} 8. Qd1
{[%clk 0:02:35]} 8... Nxf3+ {[%clk 0:02:58.3]} 9. Qxf3 {[%clk 0:02:36.9]} 9...
Bc6 {[%clk 0:02:32.3]} 10. Qg3 {[%clk 0:02:36.1]} 10... Ne7 {[%clk 0:02:26.2]}
11. O-O {[%clk 0:02:03.3]} 11... O-O {[%clk 0:02:23.7]} 12. Rd1 {[%clk
0:01:49.1]} 12... Bd6 {[%clk 0:02:23.5]} 13. Qh4 {[%clk 0:01:42.2]} 13... Ng6
{[%clk 0:02:22.6]} 14. Qxd8 {[%clk 0:01:32.6]} 14... Rfxd8 {[%clk 0:02:23.5]}
15. Bd2 {[%clk 0:01:34.5]} 15... a6 {[%clk 0:02:22.8]} 16. Be1 {[%clk
0:01:18.5]} 16... b5 {[%clk 0:02:18.4]} 17. Bf1 {[%clk 0:01:15.9]} 17... Bb7
{[%clk 0:02:16.6]} 18. f3 {[%clk 0:01:04.7]} 18... c5 {[%clk 0:02:10.9]} 19.
Rac1 {[%clk 0:00:59.9]} 19... c4 {[%clk 0:02:10.4]} 20. Ne4 {[%clk 0:00:41.1]}
20... Bxe4 {[%clk 0:02:06.8]} 21. fxe4 {[%clk 0:00:43]} 21... Be5 {[%clk
0:02:06.5]} 22. Bc3 {[%clk 0:00:40.5]} 22... Bxc3 {[%clk 0:02:07.2]} 23. bxc3
{[%clk 0:00:41.8]} 23... Ne5 {[%clk 0:02:06.6]} 24. Rd4 {[%clk 0:00:36.3]} 24...
Nc6 {[%clk 0:02:03]} 25. Rdd1 {[%clk 0:00:34.7]} 25... Kf8 {[%clk 0:01:58.7]}
0-1

[Event "*** Titled Tuesday Blitz"]
[Site "Chess.com"]
[Date "2019.11.05"]
[Round "7"]
[White "JonahWillow"]
[Black "Qvalda"]
[Result "1-0"]
[WhiteElo "2792"]
[BlackElo "2541"]
[TimeControl "180+2"]
[EndTime "14:34:35 PST"]
[Termination "JonahWillow won by resignation"]

1. e4 {[%clk 0:03:01.9]} 1... e5 {[%clk 0:03:00.1]} 2. Nf3 {[%clk 0:03:02.2]}
2... Nc6 {[%clk 0:03:01.2]} 3. Nc3 {[%clk 0:03:03.5]} 3... Nf6 {[%clk
0:03:01.8]} 4. Bb5 {[%clk 0:03:04]} 4... Bd6 {[%clk 0:03:01.6]} 5. d3 {[%clk
0:03:04.9]} 5... O-O {[%clk 0:03:02.4]} 6. a3 {[%clk 0:03:05.3]} 6... Re8 {[%clk
0:03:03.4]} 7. Bc4 {[%clk 0:02:57.5]} 7... h6 {[%clk 0:02:59.2]} 8. g4 {[%clk
0:02:49.1]} 8... Bc5 {[%clk 0:02:37.8]} 9. Rg1 {[%clk 0:02:37.7]} 9... d6 {[%clk
0:02:36.4]} 10. h3 {[%clk 0:02:33.3]} 10... Be6 {[%clk 0:02:31.5]} 11. g5 {[%clk
0:02:32.7]} 11... hxg5 {[%clk 0:02:32.3]} 12. Bxg5 {[%clk 0:02:33.3]} 12... Bxc4
{[%clk 0:02:31.4]} 13. dxc4 {[%clk 0:02:34.8]} 13... Kf8 {[%clk 0:02:06.9]} 14.
Nd5 {[%clk 0:02:31.8]} 14... Re6 {[%clk 0:01:47.2]} 15. Bxf6 {[%clk 0:02:20.9]}
15... Rxf6 {[%clk 0:01:49.1]} 16. Nxf6 {[%clk 0:02:11.8]} 16... Qxf6 {[%clk
0:01:51]} 17. c3 {[%clk 0:02:12.8]} 17... Qf4 {[%clk 0:01:45.8]} 18. Qe2 {[%clk
0:02:13.5]} 18... a5 {[%clk 0:01:35.1]} 19. Rg4 {[%clk 0:02:13.8]} 19... Qh6
{[%clk 0:01:36.1]} 20. Rh4 {[%clk 0:02:12.6]} 20... Qe6 {[%clk 0:00:25.8]} 21.
Rh8+ {[%clk 0:02:13.3]} 21... Ke7 {[%clk 0:00:27.1]} 22. Rxa8 {[%clk 0:02:13]}
22... Qh6 {[%clk 0:00:28.4]} 23. Qd2 {[%clk 0:02:07.5]} 23... Qxh3 {[%clk
0:00:27.9]} 24. Qg5+ {[%clk 0:02:06.7]} 24... f6 {[%clk 0:00:27.3]} 25. Qxg7+
{[%clk 0:02:07.6]} 25... Ke6 {[%clk 0:00:27.6]} 26. Re8+ {[%clk 0:02:08.3]} 1-0